fUST/lending_fUST_20250601
["ID","MTS","AMOUNT","RATE_DAILY","PERIOD"]
[363456193,1748729253137,-500.0,0.00016437,2]
[363456194,1748729253164,-500.0,0.00016437,2]
[363456195,1748729253190,-500.0,0.00016437,2]
[363456196,1748729253217,-500.0,0.00016437,2]
[363456197,1748729253243,-500.0,0.00016437,2]
[363456198,1748729253270,-375.17962202,0.00016437,2]
[363456223,1748729432579,-8158.5530208,0.00016123,2]
[363456225,1748729432589,-566.70156823,0.00016338,2]
[363456227,1748729432599,-256.0,0.00016436,2]
[363456229,1748729432608,-174.82037798,0.00016437,2]
[363456231,1748729432618,-500.0,0.00016437,2]
[363456233,1748729432628,-500.0,0.00016437,2]
[363456235,1748729432637,-500.0,0.00016437,2]
[363456236,1748729432647,-464.19847642,0.00016437,2]
[363456238,1748729432657,-430.0,0.00016438,2]
[363456240,1748729432667,-430.0,0.00016438,2]
[363456242,1748729432676,-430.0,0.00016438,2]
[363456244,1748729432685,-260.18082983,0.00016438,2]
[363456246,1748729432695,-430.0,0.00016438,2]
[363456248,1748729432706,-430.0,0.00016438,2]
[363456250,1748729432716,-430.0,0.00016438,2]
[363456252,1748729432726,-430.0,0.00016438,2]
[363456253,1748729432735,-430.0,0.00016438,2]
[363456254,1748729432745,-430.0,0.00016438,2]
[363456256,1748729432754,-430.0,0.00016438,2]
[363456258,1748729432764,-430.0,0.00016438,2]
[363456260,1748729432773,-430.0,0.00016438,2]
[363456261,1748729432783,-190.53737934,0.00016438,2]
[363456262,1748729432792,-470.0,0.00016438,2]
[363456263,1748729432801,-430.0,0.00016438,2]
[363456264,1748729432811,-500.0,0.00016438,2]
[363456265,1748729432821,-500.0,0.00016438,2]
[363456266,1748729432830,-500.0,0.00016438,2]
[363456267,1748729432841,-430.0,0.00016438,2]
[363456268,1748729432852,-470.0,0.00016438,2]
[363456269,1748729432863,-430.0,0.00016438,2]
[363456270,1748729432872,-500.0,0.00016438,2]
[363456271,1748729432881,-500.0,0.00016438,2]
[363456272,1748729432891,-500.0,0.00016438,2]
[363456273,1748729432901,-570.0,0.00016438,2]
[363456274,1748729432910,-430.0,0.00016438,2]
[363456275,1748729432921,-430.0,0.00016438,2]
[363456276,1748729432931,-430.0,0.00016438,2]
[363456277,1748729432940,-430.0,0.00016438,2]
[363456278,1748729432949,-430.0,0.00016438,2]
[363456279,1748729432959,-430.0,0.00016438,2]
[363456280,1748729432968,-430.0,0.00016438,2]
[363456281,1748729432978,-490.0,0.00016438,2]
[363456282,1748729432987,-430.0,0.00016438,2]
[363456283,1748729432998,-430.0,0.00016438,2]
[363456284,1748729433008,-430.0,0.00016438,2]
[363456285,1748729433021,-430.0,0.00016438,2]
[363456286,1748729433031,-430.0,0.00016438,2]
[363456287,1748729433041,-430.0,0.00016438,2]
[363456288,1748729433052,-364.80785142,0.00016438,2]
[363456289,1748729433063,-430.0,0.00016438,2]
[363456290,1748729433073,-430.0,0.00016438,2]
[363456291,1748729433083,-430.0,0.00016438,2]
[363456292,1748729433093,-430.0,0.00016438,2]
[363456293,1748729433104,-430.0,0.00016438,2]
[363456294,1748729433114,-430.0,0.00016438,2]
[363456295,1748729433124,-493.99742727,0.00016438,2]
[363456296,1748729433138,-430.0,0.00016438,2]
[363456297,1748729433147,-508.49204427,0.00016438,2]
[363456298,1748729433156,-430.0,0.00016438,2]
[363456299,1748729433167,-430.0,0.00016438,2]
[363456300,1748729433176,-239.98479044,0.00016438,2]
[363456301,1748729433186,-430.64084423,0.00016438,2]
[363456302,1748729433196,-430.0,0.00016438,2]
[363456303,1748729433207,-430.0,0.00016438,2]
[363456304,1748729433218,-430.0,0.00016438,2]
[363456305,1748729433228,-233.75759186,0.00016438,2]
[363456306,1748729433238,-430.0,0.00016438,2]
[363456307,1748729433248,-430.0,0.00016438,2]
[363456308,1748729433258,-430.52180674,0.00016438,2]
[363456309,1748729433268,-569.7445766,0.00016438,2]
[363456310,1748729433278,-430.5881229,0.00016438,2]
[363456311,1748729433288,-431.8041462,0.00016438,2]
[363456312,1748729433299,-430.0,0.00016438,2]
[363456313,1748729433309,-430.0,0.00016438,2]
[363456314,1748729433320,-430.0,0.00016438,2]
[363456315,1748729433330,-430.0,0.00016438,2]
[363456316,1748729433341,-430.0,0.00016438,2]
[363456317,1748729433351,-430.0,0.00016438,2]
[363456318,1748729433360,-432.81831017,0.00016438,2]
[363456319,1748729433372,-430.0,0.00016438,2]
[363456320,1748729433382,-401.14428768,0.00016438,2]
[363456321,1748729433393,-430.0,0.00016438,2]
[363456322,1748729433403,-430.0,0.00016438,2]
[363456323,1748729433413,-430.0,0.00016438,2]
[363456324,1748729433423,-430.0,0.00016438,2]
[363456325,1748729433433,-431.31898292,0.00016438,2]
[363456326,1748729433443,-402.05547514,0.00016438,2]
[363456327,1748729433453,-431.40152635,0.00016438,2]
[363456328,1748729433462,-430.0,0.00016438,2]
[363456329,1748729433473,-404.92512795,0.00016438,2]
[363456330,1748729433482,-432.85663331,0.00016438,2]
[363456331,1748729433492,-430.80770981,0.00016438,2]
[363456332,1748729433503,-572.13618586,0.00016438,2]
[363456333,1748729433513,-418.9004,0.00016438,2]
[363456334,1748729433522,-430.0,0.00016438,2]
[363456335,1748729433532,-415.76938968,0.00016438,2]
[363456336,1748729433542,-430.0,0.00016438,2]
[363456337,1748729433552,-430.0,0.00016438,2]
[363456338,1748729433562,-430.0,0.00016438,2]
[363456339,1748729433572,-430.0,0.00016438,2]
[363456340,1748729433582,-431.10990926,0.00016438,2]
[363456341,1748729433592,-433.40130627,0.00016438,2]
[363456342,1748729433602,-430.0,0.00016438,2]
[363456343,1748729433611,-525.11398757,0.00016438,2]
[363456344,1748729433622,-430.0,0.00016438,2]
[363456345,1748729433631,-430.0,0.00016438,2]
[363456346,1748729433641,-403.91299845,0.00016438,2]
[363456347,1748729433651,-431.07858236,0.00016438,2]
[363456348,1748729433661,-430.0,0.00016438,2]
[363456349,1748729433670,-430.0,0.00016438,2]
[363456350,1748729433680,-403.05956044,0.00016438,2]
[363456351,1748729433690,-405.44056148,0.00016438,2]
[363456352,1748729433700,-431.94957379,0.00016438,2]
[363456353,1748729433710,-430.66831409,0.00016438,2]
[363456354,1748729433719,-402.2231976,0.00016438,2]
[363456355,1748729433730,-433.46536059,0.00016438,2]
[363456356,1748729433740,-433.29933048,0.00016438,2]
[363456357,1748729433749,-154.61416048,0.00016438,2]
[363456358,1748729433759,-430.54603059,0.00016438,2]
[363456359,1748729433769,-430.0,0.00016438,2]
[363456360,1748729433779,-401.0998147,0.00016438,2]
[363456361,1748729433788,-493.29,0.00016438,2]
[363456362,1748729433798,-430.0,0.00016438,2]
[363456363,1748729433808,-430.55120305,0.00016438,2]
[363456364,1748729433821,-430.59389948,0.00016438,2]
[363456365,1748729433831,-430.0,0.00016438,2]
[363456366,1748729433842,-430.0,0.00016438,2]
[363456367,1748729433852,-430.0,0.00016438,2]
[363456368,1748729433862,-430.0,0.00016438,2]
[363456369,1748729433872,-430.0,0.00016438,2]
[363456370,1748729433881,-430.0,0.00016438,2]
[363456371,1748729433891,-430.0,0.00016438,2]
[363456372,1748729433900,-430.0,0.00016438,2]
[363456373,1748729433909,-430.0,0.00016438,2]
[363456374,1748729433920,-432.64667459,0.00016438,2]
[363456375,1748729433931,-430.0,0.00016438,2]
[363456376,1748729433941,-430.0,0.00016438,2]
[363456377,1748729433950,-408.82727833,0.00016438,2]
[363456378,1748729433959,-430.0,0.00016438,2]
[363456379,1748729433968,-472.07231314,0.00016438,2]
[363456380,1748729433978,-430.79264539,0.00016438,2]
[363456381,1748729433988,-490.0,0.00016438,2]
[363456382,1748729433997,-406.35753184,0.00016438,2]
[363456383,1748729434006,-430.0,0.00016438,2]
[363456384,1748729434015,-431.54164494,0.00016438,2]
[363456385,1748729434024,-430.0,0.00016438,2]
[363456386,1748729434034,-430.0,0.00016438,2]
[363456387,1748729434043,-430.0,0.00016438,2]
[363456388,1748729434053,-430.0,0.00016438,2]
[363456389,1748729434063,-430.0,0.00016438,2]
[363456390,1748729434073,-402.16397044,0.00016438,2]
[363456391,1748729434083,-524.34667584,0.00016438,2]
[363456392,1748729434092,-432.94340623,0.00016438,2]
[363456393,1748729434102,-430.0,0.00016438,2]
[363456394,1748729434111,-430.71108495,0.00016438,2]
[363456395,1748729434121,-434.14660711,0.00016438,2]
[363456396,1748729434132,-403.13121289,0.00016438,2]
[363456397,1748729434142,-430.0,0.00016438,2]
[363456398,1748729434151,-400.0,0.00016438,2]
[363456399,1748729434160,-431.96434509,0.00016438,2]
[363456400,1748729434169,-239.22892014,0.00016438,2]
[363456401,1748729434178,-460.57,0.00016438,2]
[363456402,1748729434187,-430.41777428,0.00016438,2]
[363456403,1748729434196,-430.47614041,0.00016438,2]
[363456404,1748729434205,-434.0223265,0.00016438,2]
[363456405,1748729434216,-433.20175949,0.00016438,2]
[363456406,1748729434225,-431.98173589,0.00016438,2]
[363456407,1748729434234,-431.88087212,0.00016438,2]
[363456408,1748729434243,-430.0,0.00016438,2]
[363456409,1748729434253,-430.0,0.00016438,2]
[363456410,1748729434262,-403.02955024,0.00016438,2]
[363456411,1748729434272,-430.0,0.00016438,2]
[363456412,1748729434281,-430.0,0.00016438,2]
[363456413,1748729434291,-430.0,0.00016438,2]
[363456414,1748729434300,-430.0,0.00016438,2]
[363456415,1748729434310,-430.0,0.00016438,2]
[363456416,1748729434321,-430.64900735,0.00016438,2]
[363456417,1748729434330,-444.74290988,0.00016438,2]
[363456418,1748729434340,-430.0,0.00016438,2]
[363456419,1748729434349,-1000.64332476,0.00016438,2]
[363456420,1748729434358,-430.0,0.00016438,2]
[363456421,1748729434368,-430.0,0.00016438,2]
[363456422,1748729434378,-431.67944981,0.00016438,2]
[363456423,1748729434387,-430.0,0.00016438,2]
[363456424,1748729434397,-430.0,0.00016438,2]
[363456425,1748729434406,-433.04794232,0.00016438,2]
[363456426,1748729434415,-431.26906748,0.00016438,2]
[363456427,1748729434425,-484.64,0.00016438,2]
[363456428,1748729434435,-430.0,0.00016438,2]
[363456429,1748729434444,-507.31935661,0.00016438,2]
[363456430,1748729434454,-430.0,0.00016438,2]
[363456431,1748729434463,-431.04214636,0.00016438,2]
[363456432,1748729434473,-431.54354014,0.00016438,2]
[363456433,1748729434483,-430.84832186,0.00016438,2]
[363456434,1748729434492,-432.81462948,0.00016438,2]
[363456435,1748729434502,-430.76774755,0.00016438,2]
[363456436,1748729434512,-430.0,0.00016438,2]
[363456437,1748729434522,-430.0,0.00016438,2]
[363456438,1748729434533,-432.12813567,0.00016438,2]
[363456439,1748729434543,-430.0,0.00016438,2]
[363456440,1748729434553,-431.18459552,0.00016438,2]
[363456441,1748729434565,-430.7695933,0.00016438,2]
[363456442,1748729434575,-411.19967233,0.00016438,2]
[363456443,1748729434584,-430.0,0.00016438,2]
[363456444,1748729434595,-430.0,0.00016438,2]
[363456445,1748729434605,-430.82970958,0.00016438,2]
[363456446,1748729434614,-430.0,0.00016438,2]
[363456447,1748729434625,-430.0,0.00016438,2]
[363456448,1748729434634,-397.82663718,0.00016438,2]
[363456449,1748729434643,-430.0,0.00016438,2]
[363456450,1748729434653,-497.55,0.00016438,2]
[363456451,1748729434663,-400.0,0.00016438,2]
[363456452,1748729434672,-430.0,0.00016438,2]
[363456453,1748729434682,-430.0,0.00016438,2]
[363456454,1748729434691,-430.0,0.00016438,2]
[363456455,1748729434701,-500.0,0.00016438,2]
[363456456,1748729434711,-430.0,0.00016438,2]
[363456457,1748729434720,-430.56947324,0.00016438,2]
[363456458,1748729434730,-430.0,0.00016438,2]
[363456459,1748729434740,-523.23722462,0.00016438,2]
[363456748,1748729440899,-396.78277538,0.00016438,2]
[363456750,1748729440909,-430.0,0.00016438,2]
[363456752,1748729440919,-430.0,0.00016438,2]
[363456754,1748729440928,-430.0,0.00016438,2]
[363456756,1748729440937,-411.18512248,0.00016438,2]
[363457124,1748729446646,-78.81487752,0.00016438,2]
[363457127,1748729446656,-430.0,0.00016438,2]
[363457129,1748729446665,-567.82041047,0.00016438,2]
[363457131,1748729446674,-430.0,0.00016438,2]
[363457133,1748729446684,-430.0,0.00016438,2]
[363457135,1748729446693,-232.22211638,0.00016438,2]
[363457137,1748729446703,-430.0,0.00016438,2]
[363457139,1748729446711,-430.0,0.00016438,2]
[363457141,1748729446720,-490.0,0.00016438,2]
[363457143,1748729446729,-430.0,0.00016438,2]
[363457145,1748729446738,-347.49206568,0.00016438,2]
[363457147,1748729446747,-430.0,0.00016438,2]
[363457149,1748729446756,-512.23,0.00016438,2]
[363457151,1748729446766,-430.0,0.00016438,2]
[363457153,1748729446775,-626.51,0.00016711,2]
[363457155,1748729446784,-448.45913252,0.00016711,2]
[363457170,1748729446914,-430.0,0.00016712,2]
[363457172,1748729446924,-430.0,0.00016712,2]
[363457174,1748729446933,-430.0,0.00016712,2]
[363457176,1748729446942,-430.0,0.00016712,2]
[363457178,1748729446952,-430.0,0.00016712,2]
[363457180,1748729446961,-430.0,0.00016712,2]
[363457182,1748729446971,-430.0,0.00016712,2]
[363457184,1748729446983,-430.0,0.00016712,2]
[363457186,1748729446992,-341.09,0.00016712,2]
[363457188,1748729447001,-570.05,0.00016712,2]
[363457190,1748729447011,-430.0,0.00016712,2]
[363457192,1748729447021,-430.0,0.00016712,2]
[363457195,1748729447031,-430.0,0.00016712,2]
[363457196,1748729447040,-430.0,0.00016712,2]
[363457199,1748729447050,-230.32444105,0.00016712,2]
[363457200,1748729447059,-430.0,0.00016712,2]
[363457203,1748729447069,-430.0,0.00016712,2]
[363457205,1748729447079,-430.0,0.00016712,2]
[363457207,1748729447088,-186.04,0.00016712,2]
[363457209,1748729447097,-430.0,0.00016712,2]
[363457211,1748729447107,-430.0,0.00016712,2]
[363457213,1748729447116,-920.02,0.00016712,2]
[363457215,1748729447126,-430.0,0.00016712,2]
[363457217,1748729447136,-430.0,0.00016712,2]
[363457219,1748729447148,-430.0,0.00016712,2]
[363457221,1748729447158,-409.52269947,0.00016712,2]
[363457223,1748729447167,-512.23,0.00016712,2]
[363457225,1748729447177,-430.0,0.00016712,2]
[363457227,1748729447187,-430.0,0.00016986,2]
[363457229,1748729447196,-430.0,0.00016986,2]
[363457231,1748729447206,-430.0,0.00016986,2]
[363457233,1748729447215,-430.0,0.00016986,2]
[363457235,1748729447224,-430.0,0.00016986,2]
[363457237,1748729447234,-430.0,0.00016986,2]
[363457239,1748729447243,-430.0,0.00016986,2]
[363457241,1748729447252,-430.0,0.00016986,2]
[363457243,1748729447262,-430.0,0.00016986,2]
[363457245,1748729447271,-430.0,0.00016986,2]
[363457247,1748729447280,-430.0,0.00016986,2]
[363457249,1748729447290,-430.0,0.00016986,2]
[363457251,1748729447299,-430.0,0.00016986,2]
[363457253,1748729447309,-430.0,0.00016986,2]
[363457255,1748729447318,-430.0,0.00016986,2]
[363457257,1748729447328,-920.02,0.00016986,2]
[363457259,1748729447338,-430.0,0.00016986,2]
[363457261,1748729447348,-430.0,0.00016986,2]
[363457263,1748729447357,-430.0,0.00016986,2]
[363457265,1748729447369,-512.23,0.00016986,2]
[363457267,1748729447378,-430.0,0.00016986,2]
[363457269,1748729447388,-430.0,0.0001726,2]
[363457271,1748729447398,-430.0,0.0001726,2]
[363457273,1748729447407,-430.0,0.0001726,2]
[363457275,1748729447416,-430.0,0.0001726,2]
[363457277,1748729447425,-430.0,0.0001726,2]
[363457279,1748729447434,-430.0,0.0001726,2]
[363457281,1748729447444,-430.0,0.0001726,2]
[363457283,1748729447453,-430.0,0.0001726,2]
[363457285,1748729447462,-430.0,0.0001726,2]
[363457287,1748729447472,-430.0,0.0001726,2]
[363457289,1748729447481,-430.0,0.0001726,2]
[363457291,1748729447491,-430.0,0.0001726,2]
[363457293,1748729447500,-430.0,0.0001726,2]
[363457295,1748729447510,-403.34,0.0001726,2]
[363457297,1748729447519,-430.0,0.0001726,2]
[363457299,1748729447528,-920.02,0.0001726,2]
[363457301,1748729447538,-430.0,0.0001726,2]
[363457303,1748729447548,-430.0,0.0001726,2]
[363457305,1748729447558,-430.0,0.0001726,2]
[363457307,1748729447567,-512.23,0.0001726,2]
[363457309,1748729447578,-430.0,0.0001726,2]
[363457311,1748729447587,-566.70156816,0.00017428,2]
[363457313,1748729447597,-430.0,0.00017534,2]
[363457315,1748729447606,-430.0,0.00017534,2]
[363457317,1748729447615,-430.0,0.00017534,2]
[363457319,1748729447625,-430.0,0.00017534,2]
[363457322,1748729447637,-430.0,0.00017534,2]
[363457324,1748729447646,-430.0,0.00017534,2]
[363457326,1748729447656,-430.0,0.00017534,2]
[363457328,1748729447665,-430.0,0.00017534,2]
[363457330,1748729447674,-430.0,0.00017534,2]
[363457332,1748729447683,-430.0,0.00017534,2]
[363457333,1748729447693,-430.0,0.00017534,2]
[363457336,1748729447702,-430.0,0.00017534,2]
[363457338,1748729447711,-430.0,0.00017534,2]
[363457340,1748729447721,-430.0,0.00017534,2]
[363457342,1748729447730,-920.02,0.00017534,2]
[363457344,1748729447739,-430.0,0.00017534,2]
[363457346,1748729447749,-430.0,0.00017534,2]
[363457348,1748729447758,-430.0,0.00017534,2]
[363457350,1748729447768,-512.23,0.00017534,2]
[363457351,1748729447777,-430.0,0.00017534,2]
[363457354,1748729447787,-275.45060574,0.00017808,2]
[363457356,1748729447796,-430.0,0.00017808,2]
[363457357,1748729447805,-430.0,0.00017808,2]
[363457360,1748729447814,-430.0,0.00017808,2]
[363457362,1748729447823,-430.0,0.00017808,2]
[363457364,1748729447833,-430.0,0.00017808,2]
[363457366,1748729447842,-446.62,0.00017808,2]
[363457367,1748729447851,-430.0,0.00017808,2]
[363457370,1748729447860,-430.0,0.00017808,2]
[363457372,1748729447869,-430.0,0.00017808,2]
[363457374,1748729447879,-430.0,0.00017808,2]
[363457376,1748729447888,-430.0,0.00017808,2]
[363457378,1748729447897,-430.0,0.00017808,2]
[363457380,1748729447907,-430.0,0.00017808,2]
[363457382,1748729447916,-920.02,0.00017808,2]
[363457383,1748729447925,-430.0,0.00017808,2]
[363457386,1748729447935,-430.0,0.00017808,2]
[363457388,1748729447944,-430.0,0.00017808,2]
[363457390,1748729447954,-512.23,0.00017808,2]
[363457392,1748729447964,-430.0,0.00017808,2]
[363457394,1748729447973,-3037.7,0.00017856,2]
[363457396,1748729447982,-535.89175633,0.000179,2]
[363457398,1748729447992,-430.0,0.00018082,2]
[363457400,1748729448001,-430.0,0.00018082,2]
[363457402,1748729448010,-430.0,0.00018082,2]
[363457404,1748729448019,-430.0,0.00018082,2]
[363457406,1748729448029,-430.0,0.00018082,2]
[363457408,1748729448038,-430.0,0.00018082,2]
[363457410,1748729448047,-235.66,0.00018082,2]
[363457412,1748729448057,-430.0,0.00018082,2]
[363457414,1748729448066,-430.0,0.00018082,2]
[363457416,1748729448075,-430.0,0.00018082,2]
[363457418,1748729448085,-430.0,0.00018082,2]
[363457420,1748729448094,-430.0,0.00018082,2]
[363457422,1748729448103,-920.02,0.00018082,2]
[363457424,1748729448113,-430.0,0.00018082,2]
[363457426,1748729448122,-430.0,0.00018082,2]
[363457428,1748729448131,-430.0,0.00018082,2]
[363457430,1748729448142,-512.23,0.00018082,2]
[363457432,1748729448153,-430.0,0.00018082,2]
[363457434,1748729448163,-535.89175624,0.00018141,2]
[363457436,1748729448172,-160.0,0.00018267,2]
[363457438,1748729448183,-160.0,0.00018267,2]
[363457440,1748729448193,-611.03852989,0.00018267,2]
[363457442,1748729448203,-229.3428821,0.00018267,2]
[363457444,1748729448212,-212.77096907,0.00018267,2]
[363457446,1748729448225,-423.4608169,0.00018267,2]
[363457448,1748729448235,-430.0,0.00018356,2]
[363457450,1748729448245,-259.26276354,0.00018356,2]
[363457452,1748729448254,-430.0,0.00018356,2]
[363457454,1748729448263,-430.0,0.00018356,2]
[363457456,1748729448273,-430.0,0.00018356,2]
[363457458,1748729448282,-430.0,0.00018356,2]
[363457460,1748729448292,-430.0,0.00018356,2]
[363457462,1748729448301,-430.0,0.00018356,2]
[363457464,1748729448311,-430.0,0.00018356,2]
[363457466,1748729448322,-430.0,0.00018356,2]
[363457469,1748729448338,-430.0,0.00018356,2]
[363457471,1748729448352,-920.02,0.00018356,2]
[363457473,1748729448366,-430.0,0.00018356,2]
[363457476,1748729448379,-430.0,0.00018356,2]
[363457478,1748729448391,-430.0,0.00018356,2]
[363457480,1748729448402,-512.23,0.00018356,2]
[363457482,1748729448413,-430.0,0.00018356,2]
[363457485,1748729448426,-535.89175624,0.00018383,2]
[363457487,1748729448437,-566.70156816,0.00018518,2]
[363457489,1748729448451,-535.89175624,0.00018624,2]
[363457492,1748729448462,-430.0,0.0001863,2]
[363457494,1748729448475,-430.0,0.0001863,2]
[363457496,1748729448487,-430.0,0.0001863,2]
[363457498,1748729448499,-430.0,0.0001863,2]
[363457501,1748729448511,-430.0,0.0001863,2]
[363457503,1748729448523,-430.0,0.0001863,2]
[363457505,1748729448536,-430.0,0.0001863,2]
[363457508,1748729448548,-430.0,0.0001863,2]
[363457510,1748729448562,-430.0,0.0001863,2]
[363457512,1748729448575,-430.0,0.0001863,2]
[363457515,1748729448586,-920.02,0.0001863,2]
[363457517,1748729448598,-430.0,0.0001863,2]
[363457519,1748729448611,-430.0,0.0001863,2]
[363457521,1748729448622,-430.0,0.0001863,2]
[363457523,1748729448633,-512.23,0.0001863,2]
[363457526,1748729448644,-430.0,0.0001863,2]
[363457528,1748729448657,-6075.4,0.00018727,2]
[363457530,1748729448669,-535.89175624,0.00018866,2]
[363457532,1748729448680,-1092.26783935,0.000189,2]
[363457534,1748729448692,-430.0,0.00018904,2]
[363457536,1748729448702,-430.0,0.00018904,2]
[363457537,1748729448711,-430.0,0.00018904,2]
[363457538,1748729448722,-430.0,0.00018904,2]
[363457539,1748729448733,-430.0,0.00018904,2]
[363457540,1748729448744,-503.606026,0.00018904,2]
[363457541,1748729448756,-430.0,0.00018904,2]
[363457542,1748729448768,-430.0,0.00018904,2]
[363457543,1748729448780,-430.0,0.00018904,2]
[363457544,1748729448792,-498.65038909,0.00018904,2]
[363457545,1748729448803,-920.02,0.00018904,2]
[363457546,1748729448815,-430.0,0.00018904,2]
[363457547,1748729448829,-430.0,0.00018904,2]
[363457548,1748729448840,-430.0,0.00018904,2]
[363457549,1748729448854,-512.23,0.00018904,2]
[363457550,1748729448867,-430.0,0.00018904,2]
[363457551,1748729448880,-207.4,0.00018917,2]
[363457552,1748729448892,-300.0,0.00018917,2]
[363457553,1748729448902,-5000.0,0.00018917,2]
[363457554,1748729448913,-300.0,0.00018917,2]
[363457555,1748729448923,-300.0,0.00018917,2]
[363457556,1748729448934,-300.0,0.00018917,2]
[363457557,1748729448946,-300.0,0.00018917,2]
[363457558,1748729448959,-300.0,0.00018917,2]
[363457559,1748729448972,-300.0,0.00018917,2]
[363457560,1748729448983,-300.0,0.00018917,2]
[363457561,1748729448995,-300.0,0.00018917,2]
[363457562,1748729449005,-300.0,0.00018917,2]
[363457563,1748729449015,-300.0,0.00018917,2]
[363457564,1748729449026,-300.0,0.00018917,2]
[363457565,1748729449036,-300.0,0.00018917,2]
[363457566,1748729449046,-300.0,0.00018917,2]
[363457567,1748729449059,-300.0,0.00018917,2]
[363457568,1748729449071,-174.96345164,0.00019078,2]
[363457569,1748729449083,-535.89175624,0.00019107,2]
[363457570,1748729449094,-500.0,0.00019178,2]
[363457571,1748729449104,-500.0,0.00019178,2]
[363457572,1748729449114,-500.0,0.00019178,2]
[363457573,1748729449124,-500.0,0.00019178,2]
[363457574,1748729449135,-500.0,0.00019178,2]
[363457575,1748729449150,-597.54930024,0.00019178,2]
[363457576,1748729449161,-500.0,0.00019178,2]
[363457577,1748729449172,-250.0,0.00019178,2]
[363457578,1748729449183,-430.0,0.00019178,2]
[363457579,1748729449195,-430.0,0.00019178,2]
[363457580,1748729449206,-430.0,0.00019178,2]
[363457581,1748729449217,-430.0,0.00019178,2]
[363457582,1748729449230,-430.0,0.00019178,2]
[363457583,1748729449241,-330.42919416,0.00019178,2]
[363457584,1748729449252,-430.0,0.00019178,2]
[363457585,1748729449264,-430.0,0.00019178,2]
[363457586,1748729449277,-920.02,0.00019178,2]
[363457587,1748729449288,-430.0,0.00019178,2]
[363457588,1748729449299,-430.0,0.00019178,2]
[363457589,1748729449311,-430.0,0.00019178,2]
[363457590,1748729449322,-512.23,0.00019178,2]
[363457591,1748729449334,-430.0,0.00019178,2]
[363457592,1748729449345,-173.123012,0.00019178,2]
[363457593,1748729449356,-535.89175624,0.00019348,2]
[363457594,1748729449367,-242.901833,0.00019452,2]
[363457595,1748729449377,-151.0,0.00019452,2]
[363457596,1748729449388,-417.54876313,0.00019452,2]
[363457597,1748729449400,-430.0,0.00019452,2]
[363457598,1748729449412,-430.0,0.00019452,2]
[363457599,1748729449424,-430.0,0.00019452,2]
[363457600,1748729449435,-430.0,0.00019452,2]
[363457601,1748729449446,-430.0,0.00019452,2]
[363457602,1748729449458,-430.0,0.00019452,2]
[363457603,1748729449469,-920.02,0.00019452,2]
[363457604,1748729449481,-430.0,0.00019452,2]
[363457605,1748729449492,-430.0,0.00019452,2]
[363457606,1748729449503,-430.0,0.00019452,2]
[363457607,1748729449514,-512.23,0.00019452,2]
[363457608,1748729449525,-430.0,0.00019452,2]
[363457609,1748729449536,-5000.0,0.00019465,2]
[363457610,1748729449548,-9113.1,0.00019578,2]